fUSD/lending_fUSD_20240912
["ID","MTS","AMOUNT","RATE_DAILY","PERIOD"]
[337810948,1726128652786,-500.0,0.00014834,2]
[337810950,1726128652796,-158.72758167,0.00014834,2]
[337810952,1726128652805,-3388.43,0.00014834,2]
[337810954,1726128652820,-1087.14,0.00014834,2]
[337810956,1726128652830,-500.0,0.00014834,2]
[337810958,1726128652839,-500.0,0.00014834,2]
[337810960,1726128652849,-500.0,0.00014834,2]
[337810962,1726128652859,-151.0,0.00014834,2]
[337810964,1726128652869,-815.71,0.00014834,2]
[337810965,1726128652878,-500.0,0.00014834,2]
[337810967,1726128652888,-1401.01,0.00014834,2]
[337810969,1726128652898,-500.0,0.00014834,2]
[337810971,1726128652908,-151.0,0.00014834,2]
[337810973,1726128652917,-500.0,0.00014834,2]
[337810975,1726128652927,-2239.23,0.00014834,2]
[337810977,1726128652937,-500.0,0.00014834,2]
[337810979,1726128652947,-500.0,0.00014834,2]
[337810981,1726128652956,-500.0,0.00014834,2]
[337810983,1726128652966,-500.0,0.00014834,2]
[337810985,1726128652976,-500.0,0.00014834,2]
[337810987,1726128652986,-1341.13,0.00014834,2]
[337810989,1726128652996,-5949.21,0.00014834,2]
[337810991,1726128653006,-2212.19,0.00014834,2]
[337810993,1726128653015,-500.0,0.00014834,2]
[337810994,1726128653025,-2223.39,0.00014834,2]
[337810996,1726128653034,-500.0,0.00014834,2]
[337810998,1726128653044,-5460.91,0.00014834,2]
[337811000,1726128653054,-2715.03,0.00014834,2]
[337811002,1726128653064,-500.0,0.00014834,2]
[337811004,1726128653074,-500.0,0.00014834,2]
[337811006,1726128653083,-500.0,0.00014834,2]
[337811008,1726128653093,-861.36,0.00014834,2]
[337811010,1726128653102,-1836.36,0.00014834,2]
[337811012,1726128653113,-7405.2,0.00014834,2]
[337811014,1726128653122,-500.0,0.00014834,2]
[337811016,1726128653131,-500.0,0.00014834,2]
[337811018,1726128653140,-1752.51,0.00014834,2]
[337811020,1726128653153,-998.31,0.00014834,2]
[337811021,1726128653163,-5053.22,0.00014834,2]
[337811024,1726128653173,-1647.38,0.00014834,2]
[337811025,1726128653183,-20000.0,0.00014834,2]
[337811027,1726128653193,-500.0,0.00014834,2]
[337811029,1726128653202,-3957.08,0.00014834,2]
[337811031,1726128653211,-500.0,0.00014834,2]
[337811033,1726128653221,-578.34,0.00014834,2]
[337811035,1726128653230,-1241.3,0.00014834,2]
[337811037,1726128653240,-3305.62,0.00014834,2]
[337811039,1726128653249,-500.0,0.00014834,2]
[337811041,1726128653258,-1889.61,0.00014834,2]
[337811043,1726128653267,-1193.9,0.00014834,2]
[337811044,1726128653276,-1414.41,0.00014834,2]
[337811046,1726128653285,-2113.93,0.00014834,2]
[337811048,1726128653294,-1735.17,0.00014834,2]
[337811050,1726128653303,-500.0,0.00014834,2]
[337811052,1726128653313,-7877.93,0.00014834,2]
[337811054,1726128653322,-3060.01,0.00014834,2]
[337811056,1726128653331,-1372.82,0.00014834,2]
[337811058,1726128653340,-500.0,0.00014834,2]
[337811060,1726128653349,-500.0,0.00014834,2]
[337811061,1726128653358,-531.95,0.00014834,2]
[337811063,1726128653367,-500.0,0.00014834,2]
[337811065,1726128653376,-2859.38,0.00014834,2]
[337811067,1726128653386,-500.0,0.00014834,2]
[337811069,1726128653395,-780.82,0.00014834,2]
[337811071,1726128653404,-242.632368,0.00014834,2]
[337811073,1726128653413,-500.0,0.00014834,2]
[337811075,1726128653422,-3678.93,0.00014834,2]
[337811077,1726128653431,-500.0,0.00014834,2]
[337811079,1726128653441,-4107.53,0.00014834,2]
[337811081,1726128653450,-1611.0,0.00014834,2]
[337811082,1726128653459,-500.0,0.00014834,2]
[337811084,1726128653469,-500.0,0.00014834,2]
[337811105,1726128653687,-1894.31,0.00014834,2]
[337811108,1726128653734,-2541.6,0.00014834,2]
[337811110,1726128653744,-500.0,0.00014834,2]
[337811112,1726128653753,-3464.91,0.00014834,2]
[337811113,1726128653763,-690.49,0.00014834,2]
[337811115,1726128653772,-500.0,0.00014834,2]
[337811117,1726128653782,-1700.78,0.00014834,2]
[337811119,1726128653791,-769.63,0.00014834,2]
[337811121,1726128653801,-500.0,0.00014834,2]
[337811123,1726128653810,-151.0,0.00014834,2]
[337811124,1726128653821,-500.0,0.00014834,2]
[337811126,1726128653830,-1219.84,0.00014834,2]
[337811127,1726128653839,-500.0,0.00014834,2]
[337811128,1726128653849,-1365.25,0.00014834,2]
[337811129,1726128653858,-640.15,0.00014834,2]
[337811130,1726128653867,-500.0,0.00014834,2]
[337811131,1726128653877,-1925.93,0.00014834,2]
[337811132,1726128653886,-1709.91,0.00014834,2]
[337811133,1726128653895,-151.0,0.00014834,2]
[337811134,1726128653904,-153.833589,0.00014834,2]
[337811135,1726128653913,-500.0,0.00014834,2]
[337811136,1726128653923,-4026.34,0.00014834,2]
[337811137,1726128653932,-500.0,0.00014834,2]
[337811138,1726128653942,-500.0,0.00014834,2]
[337811139,1726128653951,-500.0,0.00014834,2]
[337811140,1726128653961,-500.0,0.00014834,2]
[337811141,1726128653970,-2555.84,0.00014834,2]
[337811142,1726128653980,-648.11,0.00014834,2]
[337811143,1726128653990,-833.07,0.00014834,2]
[337811144,1726128653999,-500.0,0.00014834,2]
[337811145,1726128654009,-500.0,0.00014834,2]
[337811146,1726128654018,-1851.88,0.00014834,2]
[337811147,1726128654028,-500.0,0.00014834,2]
[337811148,1726128654037,-506.93,0.00014834,2]
[337811149,1726128654047,-549.930976,0.00014834,2]
[337811150,1726128654056,-917.56,0.00014834,2]
[337811151,1726128654066,-549.930976,0.00014834,2]
[337811152,1726128654076,-500.0,0.00014834,2]
[337811153,1726128654085,-549.930976,0.00014834,2]
[337811154,1726128654095,-2342.43,0.00014834,2]
[337811155,1726128654104,-549.930976,0.00014834,2]
[337811156,1726128654114,-549.930976,0.00014834,2]
[337811157,1726128654124,-549.930976,0.00014834,2]
[337811158,1726128654133,-2161.27,0.00014834,2]
[337811159,1726128654143,-500.0,0.00014834,2]
[337811160,1726128654156,-549.930976,0.00014834,2]
[337811161,1726128654165,-549.930976,0.00014834,2]
[337811162,1726128654175,-738.81419,0.00014834,2]
[337811163,1726128654185,-549.930976,0.00014834,2]
[337811164,1726128654195,-738.81419,0.00014834,2]
[337811165,1726128654205,-738.81419,0.00014834,2]
[337811166,1726128654214,-549.930976,0.00014834,2]
[337811167,1726128654225,-738.81419,0.00014834,2]
[337811168,1726128654235,-549.930976,0.00014834,2]
[337811169,1726128654244,-738.81419,0.00014834,2]
[337811170,1726128654254,-549.93098,0.00014834,2]
[337811171,1726128654264,-738.81419,0.00014834,2]
[337811172,1726128654273,-738.81419,0.00014834,2]
[337811173,1726128654283,-500.0,0.00014834,2]
[337811174,1726128654292,-738.81419,0.00014834,2]
[337811175,1726128654302,-1635.07,0.00014834,2]
[337811176,1726128654313,-738.81419,0.00014834,2]
[337811177,1726128654323,-1250.43,0.00014834,2]
[337811178,1726128654333,-738.81419,0.00014834,2]
[337811179,1726128654342,-738.81419,0.00014834,2]
[337811180,1726128654352,-738.814196,0.00014834,2]
[337811181,1726128654362,-1034.35,0.00014834,2]
[337811182,1726128654371,-1590.32,0.00014834,2]
[337811183,1726128654381,-1243.52,0.00014834,2]
[337811184,1726128654391,-500.0,0.00014834,2]
[337811185,1726128654400,-259.028582,0.00014834,2]
[337811186,1726128654410,-259.028582,0.00014834,2]
[337811187,1726128654419,-259.028582,0.00014834,2]
[337811188,1726128654429,-500.0,0.00014834,2]
[337811189,1726128654438,-259.028582,0.00014834,2]
[337811190,1726128654448,-259.028582,0.00014834,2]
[337811191,1726128654457,-259.028582,0.00014834,2]
[337811192,1726128654467,-1986.07,0.00014834,2]
[337811193,1726128654476,-259.028582,0.00014834,2]
[337811194,1726128654486,-259.028582,0.00014834,2]
[337811195,1726128654496,-500.0,0.00014834,2]
[337811196,1726128654506,-259.028582,0.00014834,2]
[337811197,1726128654515,-259.028582,0.00014834,2]
[337811198,1726128654525,-888.026011,0.00014834,2]
[337811199,1726128654534,-259.028582,0.00014834,2]
[337811200,1726128654544,-888.026011,0.00014834,2]
[337811201,1726128654554,-1380.72,0.00014834,2]
[337811202,1726128654564,-152.886775,0.00014834,2]
[337811203,1726128654574,-259.028574,0.00014834,2]
[337811204,1726128654583,-888.026011,0.00014834,2]
[337811205,1726128654593,-1992.94,0.00014834,2]
[337811206,1726128654602,-1171.58,0.00014834,2]
[337811207,1726128654612,-500.0,0.00014834,2]
[337811208,1726128654621,-888.026011,0.00014834,2]
[337811209,1726128654630,-888.026011,0.00014834,2]
[337811210,1726128654640,-888.026011,0.00014834,2]
[337811211,1726128654649,-841.25,0.00014834,2]
[337811212,1726128654658,-500.0,0.00014834,2]
[337811213,1726128654667,-1073.9,0.00014834,2]
[337811214,1726128654676,-4379.64,0.00014834,2]
[337811215,1726128654685,-557.89,0.00014834,2]
[337811216,1726128654695,-500.0,0.00014834,2]
[337811217,1726128654704,-500.0,0.00014834,2]
[337811218,1726128654713,-500.0,0.00014834,2]
[337811219,1726128654722,-500.0,0.00014834,2]
[337811220,1726128654731,-500.0,0.00014834,2]
[337811221,1726128654740,-151.0,0.00014834,2]
[337811222,1726128654749,-693.83,0.00014834,2]
[337811223,1726128654758,-151.0,0.00014834,2]
[337811224,1726128654768,-4955.19,0.00014834,2]
[337811225,1726128654777,-717.14,0.00014834,2]
[337811226,1726128654786,-151.0,0.00014834,2]
[337811227,1726128654796,-500.0,0.00014834,2]
[337811228,1726128654805,-151.0,0.00014834,2]
[337811229,1726128654815,-209.674365,0.00014834,2]
[337811230,1726128654824,-500.0,0.00014834,2]
[337811231,1726128654834,-1195.85,0.00014834,2]
[337811232,1726128654843,-2188.78,0.00014834,2]
[337811233,1726128654853,-669.52,0.00014834,2]
[337811234,1726128654862,-500.0,0.00014834,2]
[337811235,1726128654871,-1245.32,0.00014834,2]
[337811236,1726128654881,-752.51,0.00014834,2]
[337811237,1726128654890,-2586.57,0.00014834,2]
[337811238,1726128654900,-1066.06,0.00014834,2]
[337811239,1726128654910,-666.15,0.00014834,2]
[337811240,1726128654919,-500.0,0.00014834,2]
[337811241,1726128654928,-500.0,0.00014834,2]
[337811242,1726128654938,-562.95,0.00014834,2]
[337811243,1726128654948,-500.0,0.00014834,2]
[337811244,1726128654957,-4079.4,0.00014834,2]
[337811245,1726128654967,-500.0,0.00014834,2]
[337811246,1726128654976,-1841.72,0.00014834,2]
[337811247,1726128654986,-500.0,0.00014834,2]
[337811248,1726128654996,-500.0,0.00014834,2]
[337811249,1726128655005,-866.4,0.00014834,2]
[337811250,1726128655015,-976.02,0.00014834,2]
[337811251,1726128655025,-2334.62,0.00014834,2]
[337811252,1726128655034,-1347.63,0.00014834,2]
[337811253,1726128655043,-500.0,0.00014834,2]
[337811254,1726128655053,-1772.97,0.00014834,2]
[337811255,1726128655063,-1817.87,0.00014834,2]
[337811256,1726128655072,-500.0,0.00014834,2]
[337811257,1726128655082,-905.43,0.00014834,2]
[337811258,1726128655091,-3515.36,0.00014834,2]
[337811259,1726128655102,-500.0,0.00014834,2]
[337811260,1726128655111,-704.48,0.00014834,2]
[337811261,1726128655120,-500.0,0.00014834,2]
[337811262,1726128655129,-783.68,0.00014834,2]
[337811263,1726128655139,-3338.15,0.00014834,2]
[337811264,1726128655152,-1002.74,0.00014834,2]
[337811265,1726128655163,-500.0,0.00014834,2]
[337811266,1726128655173,-500.0,0.00014834,2]
[337811267,1726128655182,-4156.03,0.00014834,2]
[337811268,1726128655191,-4930.01,0.00014834,2]
[337811269,1726128655201,-567.7,0.00014834,2]
[337811270,1726128655210,-500.0,0.00014834,2]
[337811271,1726128655220,-568.75,0.00014834,2]
[337811272,1726128655229,-987.07,0.00014834,2]
[337811273,1726128655239,-500.0,0.00014834,2]
[337811274,1726128655248,-1446.23,0.00014834,2]
[337811275,1726128655258,-729.15,0.00014834,2]
[337811276,1726128655267,-500.0,0.00014834,2]
[337811277,1726128655276,-500.0,0.00014834,2]
[337811278,1726128655285,-151.0,0.00014834,2]
[337811279,1726128655294,-151.0,0.00014834,2]
[337811280,1726128655304,-151.0,0.00014834,2]
[337811281,1726128655313,-151.0,0.00014834,2]
[337811282,1726128655323,-647.03,0.00014834,2]
[337811283,1726128655332,-151.0,0.00014834,2]
[337811284,1726128655341,-500.0,0.00014834,2]
[337811285,1726128655350,-500.0,0.00014834,2]
[337811286,1726128655360,-151.0,0.00014834,2]
[337811287,1726128655369,-151.0,0.00014834,2]
[337811288,1726128655379,-729.42,0.00014834,2]
[337811289,1726128655388,-151.0,0.00014834,2]
[337811290,1726128655398,-151.0,0.00014834,2]
[337811291,1726128655408,-500.0,0.00014834,2]
[337811292,1726128655417,-151.0,0.00014834,2]
[337811293,1726128655426,-151.0,0.00014834,2]
[337811294,1726128655436,-541.57455579,0.00014834,2]
[337811295,1726128655445,-771.11,0.00014834,2]
[337811296,1726128655454,-151.0,0.00014834,2]
[337811297,1726128655464,-500.0,0.00014834,2]
[337811298,1726128655473,-151.0,0.00014834,2]
[337811299,1726128655482,-151.0,0.00014834,2]
[337811300,1726128655492,-500.0,0.00014834,2]
[337811301,1726128655501,-151.0,0.00014834,2]
[337811302,1726128655510,-269.42897,0.00014834,2]
[337811303,1726128655520,-151.0,0.00014834,2]
[337811304,1726128655531,-158.505026,0.00014834,2]
[337811305,1726128655540,-1605.63,0.00014834,2]
[337811306,1726128655550,-500.0,0.00014834,2]
[337811307,1726128655559,-572.20274991,0.00014834,2]
[337811308,1726128655569,-2679.47,0.00014834,2]
[337811309,1726128655579,-2694.81,0.00014834,2]
[337811310,1726128655588,-500.0,0.00014834,2]
[337811311,1726128655598,-554.66,0.00014834,2]
[337811312,1726128655607,-500.0,0.00014834,2]
[337811313,1726128655616,-1362.8,0.00014834,2]
[337811314,1726128655626,-968.687998,0.00014834,2]
[337811315,1726128655635,-968.687998,0.00014834,2]
[337811316,1726128655644,-500.0,0.00014834,2]
[337811317,1726128655653,-968.687998,0.00014834,2]
[337811318,1726128655663,-968.687998,0.00014834,2]
[337811319,1726128655672,-6131.48,0.00014834,2]
[337811320,1726128655681,-968.687998,0.00014834,2]
[337811321,1726128655690,-533.35,0.00014834,2]
[337811322,1726128655699,-500.0,0.00014834,2]
[337811323,1726128655708,-968.687998,0.00014834,2]
[337811324,1726128655718,-865.82,0.00014834,2]
[337811325,1726128655727,-500.0,0.00014834,2]
[337811326,1726128655736,-968.687998,0.00014834,2]
[337811327,1726128655745,-968.687998,0.00014834,2]
[337811328,1726128655755,-968.687998,0.00014834,2]
[337811329,1726128655764,-588.48,0.00014834,2]
[337811330,1726128655773,-968.687993,0.00014834,2]
[337811331,1726128655782,-171.156514,0.00014834,2]
[337811332,1726128655791,-171.156514,0.00014834,2]
[337811333,1726128655800,-171.156514,0.00014834,2]
[337811334,1726128655809,-171.156514,0.00014834,2]
[337811335,1726128655828,-171.156514,0.00014834,2]
[337811336,1726128655838,-171.156514,0.00014834,2]
[337811337,1726128655847,-500.0,0.00014834,2]
[337811338,1726128655856,-3791.68,0.00014834,2]
[337811339,1726128655865,-171.156514,0.00014834,2]
[337811340,1726128655874,-171.156514,0.00014834,2]
[337811341,1726128655883,-500.0,0.00014834,2]
[337811342,1726128655893,-171.156514,0.00014834,2]
[337811343,1726128655902,-171.156514,0.00014834,2]
[337811344,1726128655911,-171.156514,0.00014834,2]
[337811345,1726128655920,-171.156523,0.00014834,2]
[337811346,1726128655930,-531.43,0.00014834,2]
[337811347,1726128655939,-500.0,0.00014834,2]
[337811348,1726128655948,-847.4,0.00014834,2]
[337811349,1726128655957,-500.0,0.00014834,2]
[337811350,1726128655966,-500.0,0.00014834,2]
[337811351,1726128655975,-500.0,0.00014834,2]
[337811352,1726128655984,-3986.3,0.00014834,2]
[337811353,1726128655993,-981.375163,0.00014834,2]
[337811354,1726128656003,-981.375163,0.00014834,2]
[337811355,1726128656012,-981.375163,0.00014834,2]
[337811356,1726128656022,-2491.23,0.00014834,2]
[337811357,1726128656031,-2376.95,0.00014834,2]
[337811358,1726128656040,-2719.69,0.00014834,2]
[337811359,1726128656049,-3848.18,0.00014834,2]
[337811360,1726128656058,-500.0,0.00014834,2]
[337811361,1726128656070,-981.375163,0.00014834,2]
[337811362,1726128656079,-981.375163,0.00014834,2]
[337811363,1726128656089,-500.0,0.00014834,2]
[337811364,1726128656098,-981.375163,0.00014834,2]
[337811365,1726128656107,-500.0,0.00014834,2]
[337811366,1726128656116,-687.18,0.00014834,2]
[337811367,1726128656126,-890.61,0.00014834,2]
[337811368,1726128656135,-500.0,0.00014834,2]
[337811369,1726128656144,-564.794965,0.00014834,2]
[337811370,1726128656155,-564.794965,0.00014834,2]
[337811371,1726128656164,-500.0,0.00014834,2]
[337811372,1726128656173,-564.794965,0.00014834,2]
[337811373,1726128656183,-582.37,0.00014834,2]
[337811374,1726128656193,-3726.79,0.00014834,2]
[337811375,1726128656202,-564.794965,0.00014834,2]
[337811376,1726128656211,-564.794965,0.00014834,2]
[337811377,1726128656220,-564.794965,0.00014834,2]
[337811378,1726128656233,-564.794965,0.00014834,2]
[337811379,1726128656243,-2572.77,0.00014834,2]
[337811380,1726128656252,-564.794965,0.00014834,2]
[337811381,1726128656261,-564.794965,0.00014834,2]
[337811382,1726128656270,-564.794965,0.00014834,2]
[337811383,1726128656279,-564.794965,0.00014834,2]
[337811384,1726128656288,-564.794967,0.00014834,2]
[337811385,1726128656297,-532.36,0.00014834,2]
[337811386,1726128656306,-500.0,0.00014834,2]
[337811387,1726128656316,-12805.09,0.00014834,2]
[337811388,1726128656326,-1366.34,0.00014834,2]
[337811389,1726128656336,-12805.09,0.00014834,2]
[337811390,1726128656345,-11051.5385305,0.00014834,2]
[337811391,1726128656477,-53714.6711657,0.00014833,2]
[337811392,1726128656488,-7875.13565641,0.00014833,2]
[337811393,1726128656500,-21143.76317789,0.00014833,2]
[337811394,1726128656509,-1753.5514695,0.00014834,2]
[337811395,1726128656518,-12805.09,0.00014834,2]
[337811396,1726128656527,-500.0,0.00014834,2]
[337811397,1726128656536,-3165.88,0.00014834,2]
[337811398,1726128656545,-500.0,0.00014834,2]
[337811399,1726128656554,-500.0,0.00014834,2]
[337811400,1726128656563,-500.0,0.00014834,2]
[337811401,1726128656572,-540.88,0.00014834,2]
[337811402,1726128656581,-500.0,0.00014834,2]
[337811403,1726128656590,-500.0,0.00014834,2]
[337811404,1726128656599,-1991.61,0.00014834,2]
[337811405,1726128656609,-1991.61,0.00014834,2]
[337811406,1726128656618,-1991.61,0.00014834,2]
[337811407,1726128656627,-3583.55,0.00014834,2]
[337811408,1726128656636,-5283.86,0.00014834,2]
[337811409,1726128656646,-1991.61,0.00014834,2]
[337811410,1726128656655,-5283.86,0.00014834,2]
[337811411,1726128656664,-1697.6352982,0.00014834,2]
[337811412,1726128656676,-3586.2247018,0.00014834,2]
[337811413,1726128656686,-1691.97008257,0.00014834,2]
[337811414,1726128656697,-3591.88991743,0.00014834,2]
[337811415,1726128656706,-1798.95,0.00014834,2]
[337811416,1726128656716,-500.0,0.00014834,2]
[337811417,1726128656725,-1405.93,0.00014834,2]
[337811418,1726128656734,-500.0,0.00014834,2]
[337811419,1726128656743,-500.0,0.00014834,2]
[337811420,1726128656752,-500.0,0.00014834,2]
[337811421,1726128656761,-500.0,0.00014834,2]
[337811422,1726128656770,-500.0,0.00014834,2]
[337811423,1726128656780,-580.53,0.00014834,2]
[337811424,1726128656789,-500.79,0.00014834,2]
[337811425,1726128656798,-902.52,0.00014834,2]
[337811426,1726128656807,-508.33952859,0.00014834,2]
[337811427,1726128656817,-10694.09,0.00014834,2]
[337811428,1726128656826,-10694.09,0.00014834,2]
[337811429,1726128656836,-10694.09,0.00014834,2]
[337811430,1726128656845,-1728.45,0.00014834,2]
[337811431,1726128656854,-9693.62360807,0.00014834,2]
[337811432,1726128656865,-1000.46639193,0.00014834,2]
[337811433,1726128656875,-1133.59,0.00014834,2]
[337811434,1726128656884,-7665.14,0.00014834,2]
[337811435,1726128656893,-500.0,0.00014834,2]
[337811436,1726128656902,-3501.11,0.00014834,2]
[337811437,1726128656912,-324.359123,0.00014834,2]
[337811438,1726128656921,-324.359123,0.00014834,2]
[337811439,1726128656931,-324.359123,0.00014834,2]
[337811440,1726128656940,-324.359123,0.00014834,2]
[337811441,1726128656949,-324.359123,0.00014834,2]
[337811443,1726128656958,-324.359123,0.00014834,2]
[337811445,1726128656967,-500.0,0.00014834,2]
[337811447,1726128656977,-500.0,0.00014834,2]
[337811449,1726128656987,-1796.11,0.00014834,2]
[337811451,1726128656996,-324.359123,0.00014834,2]
[337811453,1726128657006,-1891.13,0.00014834,2]
[337811455,1726128657015,-324.359123,0.00014834,2]
[337811457,1726128657025,-324.359123,0.00014834,2]
[337811459,1726128657034,-500.0,0.00014834,2]
[337811461,1726128657044,-324.359123,0.00014834,2]
[337811463,1726128657053,-324.359123,0.00014834,2]
[337811464,1726128657062,-1737.91,0.00014834,2]
[337811466,1726128657071,-324.359118,0.00014834,2]
[337811468,1726128657081,-479.1428674,0.00014834,2]
[337811530,1726128658145,-2902.1671326,0.00014834,2]
[337811532,1726128658159,-2861.85,0.00014834,2]
[337811534,1726128658169,-2861.85,0.00014834,2]
[337811536,1726128658178,-2861.85,0.00014834,2]
[337811537,1726128658187,-2861.85,0.00014834,2]
[337811539,1726128658198,-500.0,0.00014834,2]
[337811541,1726128658208,-1081.53,0.00014834,2]
[337811543,1726128658217,-500.0,0.00014834,2]
[337811545,1726128658227,-3337.54,0.00014834,2]
[337811547,1726128658236,-1899.19,0.00014834,2]
[337811549,1726128658245,-500.0,0.00014834,2]
[337811551,1726128658254,-1357.73,0.00014834,2]
[337811553,1726128658263,-469.544961,0.00014834,2]
[337811555,1726128658272,-1357.73,0.00014834,2]
[337811557,1726128658281,-300.90728188,0.00014834,2]
[337811559,1726128658293,-1056.82271812,0.00014834,2]
[337811561,1726128658302,-469.544961,0.00014834,2]
[337811563,1726128658311,-500.0,0.00014834,2]
[337811565,1726128658320,-1357.73,0.00014834,2]
[337811567,1726128658329,-469.544961,0.00014834,2]
[337811569,1726128658339,-2487.6,0.00014834,2]
[337811571,1726128658348,-469.544961,0.00014834,2]
[337811573,1726128658357,-2487.6,0.00014834,2]
[337811575,1726128658365,-2487.6,0.00014834,2]
[337811577,1726128658374,-2487.6,0.00014834,2]
[337811578,1726128658383,-500.0,0.00014834,2]
[337811580,1726128658392,-469.544961,0.00014834,2]
[337811582,1726128658401,-469.544961,0.00014834,2]
[337811584,1726128658410,-469.544961,0.00014834,2]
[337811586,1726128658420,-469.544953,0.00014834,2]
[337811588,1726128658429,-500.0,0.00014834,2]
[337811590,1726128658438,-1380.08,0.00014834,2]
[337811592,1726128658447,-2148.76,0.00014834,2]
[337811594,1726128658457,-500.0,0.00014834,2]
[337811596,1726128658466,-2149.44,0.00014834,2]
[337811598,1726128658475,-3313.11,0.00014834,2]
[337811600,1726128658484,-2507.11,0.00014834,2]
[337811602,1726128658493,-3313.11,0.00014834,2]
[337811604,1726128658503,-500.0,0.00014834,2]
[337811606,1726128658513,-500.0,0.00014834,2]
[337811608,1726128658522,-270.02505801,0.00014834,2]
[337811610,1726128658535,-3043.08494199,0.00014834,2]
[337811612,1726128658544,-3313.11,0.00014834,2]
[337811614,1726128658554,-511.2619172,0.00014834,2]
[337811616,1726128658563,-1013.09,0.00014834,2]
[337811618,1726128658573,-1013.09,0.00014834,2]
[337811620,1726128658581,-1013.09,0.00014834,2]
[337811622,1726128658591,-1013.09,0.00014834,2]
[337811624,1726128658600,-681.15891572,0.00014834,2]
[337811626,1726128658611,-1605.27108428,0.00014834,2]
[337811628,1726128658620,-2817.08,0.00014834,2]
[337811630,1726128658629,-2203.09,0.00014834,2]
[337811632,1726128658638,-673.94,0.00014834,2]
[337811634,1726128658647,-936.45,0.00014834,2]
[337811636,1726128658656,-1288.9,0.00014834,2]
[337811638,1726128658665,-500.0,0.00014834,2]
[337811640,1726128658674,-4263.9,0.00014834,2]
[337811642,1726128658683,-4263.9,0.00014834,2]
[337811644,1726128658692,-857.62826075,0.00014834,2]
[337812305,1726128665599,178.16,0.00011057,2]
[337812386,1726128735644,273.0,0.00011057,2]
[337812495,1726128826489,829.87,0.00011754,2]
[337812497,1726128906046,1050.0,0.00011,2]
[337812506,1726129004899,158.38,0.00010959,2]
[337812507,1726129044499,500.0,0.00010959,2]
[337812508,1726129044826,500.0,0.00010959,2]
[337812509,1726129142424,178.16,0.00010913,2]
[337812716,1726129392830,-274.0,0.00012642,2]
[337813003,1726129472718,788.37,0.00011246,2]
[337813009,1726129479602,152.66,0.00010959,2]
[337813104,1726129561893,160.84885282,9e-05,2]
[337813116,1726129682294,1265.1,0.0001,2]
[337813131,1726129831716,-228.22208931,0.00012442,2]
[337813134,1726129831726,-71.77791069,0.00012479,2]
[337813136,1726129831737,-691.84965431,0.00012479,2]
[337813139,1726129831746,-540.49188591,0.00012542,2]
[337813142,1726129831756,-2264.20094356,0.00013004,2]
[337813145,1726129831787,-377.62717054,0.00013004,2]
[337813146,1726129831796,-1000.0,0.00013104,2]
[337813147,1726129831805,-712.91,0.00013144,2]
[337813148,1726129831815,-9421.55971275,0.00013144,2]
[337813149,1726129831826,-471.16519458,0.00013144,2]
[337813150,1726129831846,-14007.27509267,0.00013144,2]
[337813151,1726129831855,-273.18,0.00013154,2]
[337813152,1726129831864,-349.69453739,0.00013163,2]
[337813159,1726129837679,-2132.06546261,0.00013163,2]
[337813160,1726129837689,-250.0,0.00013178,2]